fUSD/lending_fUSD_20241001
["ID","MTS","AMOUNT","RATE_DAILY","PERIOD"]
[339645952,1727801043891,1000.0,9.837e-05,2]
[339645953,1727801081575,6444.7902718,0.0001,2]
[339645954,1727801093846,1174.76,9.862e-05,2]
[339645955,1727801103587,150.0,9.888e-05,2]
[339645956,1727801107487,150.0,9.888e-05,2]
[339645957,1727801116625,150.0,9.888e-05,2]
[339645958,1727801116952,150.0,0.0001001,2]
[339645959,1727801129569,150.0,9.888e-05,2]
[339645960,1727801133358,170.91,9.706e-05,2]
[339645961,1727801193015,164.28,9.589e-05,2]
[339645962,1727801245182,1345.26,9.616e-05,2]
[339645963,1727801256380,190.90777657,0.0001,2]
[339645964,1727801285076,151.52,9.596e-05,2]
[339645965,1727801285361,151.52,9.601e-05,2]
[339645966,1727801285656,151.52,9.605e-05,2]
[339645967,1727801285937,151.52,9.609e-05,2]
[339645968,1727801286167,151.52,9.614e-05,2]
[339645969,1727801286423,151.52,9.618e-05,2]
[339645970,1727801287366,151.52,9.622e-05,2]
[339645971,1727801287429,151.52,9.627e-05,2]
[339645972,1727801287488,151.52,9.631e-05,2]
[339645973,1727801287960,151.52,9.636e-05,2]
[339645974,1727801288198,151.52,9.64e-05,2]
[339645975,1727801288480,151.52,9.644e-05,2]
[339645976,1727801288665,500.0,9.587e-05,2]
[339645978,1727801361343,1655.41,9.587e-05,2]
[339645979,1727801399865,250.0,9.583e-05,2]
[339645984,1727801431892,-150.0,0.00010045,2]
[339645985,1727801431903,-150.0,0.00010071,2]
[339645986,1727801431913,-154.92529219,0.000101,2]
[339645987,1727801431924,-15.59403512,0.000101,2]
[339645988,1727801431934,-1700.0,0.000101,3]
[339645989,1727801431943,-984.40596488,0.00010132,2]
[339645990,1727801431955,-377.39865896,0.00010132,2]
[339645991,1727801431966,-535.511,0.00010132,2]
[339645992,1727801431978,-4268.90659672,0.00010132,2]
[339645993,1727801431989,-600.09293378,0.00010132,2]
[339645994,1727801432006,-392.78871995,0.00010132,2]
[339645995,1727801432015,-150.0,0.00010132,2]
[339645996,1727801432025,-3500.0,0.000102,3]
[339645997,1727801432034,-150.0,0.00010202,2]
[339645998,1727801432043,-150.0,0.00010254,2]
[339645999,1727801432052,-150.0,0.00010254,2]
[339646000,1727801432063,-2320.35,0.00010254,2]
[339646001,1727801432072,-178.8,0.00010254,2]
[339646002,1727801432082,-23900.0,0.00010289,2]
[339646003,1727801432091,-5200.0,0.000103,3]
[339646004,1727801432100,-150.0,0.00010359,2]
[339646005,1727801432110,-150.0,0.00010376,2]
[339646006,1727801432119,-299.99,0.00010376,2]
[339646007,1727801432134,-150.0,0.00010399,2]
[339646008,1727801432143,-1650.02,0.000104,2]
[339646009,1727801432153,-743.23,0.000104,2]
[339646010,1727801432162,-7000.0,0.000104,3]
[339646011,1727801432172,-150.0,0.00010437,2]
[339646012,1727801432182,-150.0,0.00010437,2]
[339646013,1727801432192,-791.98,0.0001047,2]
[339646014,1727801432202,-445.89,0.00010484,2]
[339646015,1727801432211,-150.0,0.00010498,2]
[339646016,1727801432221,-8700.0,0.000105,3]
[339646017,1727801432231,-150.0,0.00010515,2]
[339646018,1727801432242,-499.99,0.0001054,2]
[339646019,1727801432251,-1700.0,0.000106,3]
[339646020,1727801432261,-150.0,0.0001062,2]
[339646021,1727801432271,-150.0,0.0001062,2]
[339646022,1727801432280,-150.0,0.00010672,2]
[339646023,1727801432290,-1700.0,0.000107,3]
[339646024,1727801432300,-150.0,0.00010742,2]
[339646025,1727801432310,-151.0,0.00010781,2]
[339646026,1727801432320,-5217.3877,0.000108,2]
[339646027,1727801432329,-588.9124,0.000108,2]
[339646028,1727801432339,-1003.9748,0.000108,2]
[339646029,1727801432349,-262.1817,0.000108,2]
[339646030,1727801432358,-1700.0,0.000108,3]
[339646031,1727801432368,-150.0,0.00010803,2]
[339646032,1727801432381,-150.0,0.00010829,2]
[339646033,1727801432391,-150.0,0.00010864,2]
[339646034,1727801432402,-382.319,0.00010899,2]
[339646035,1727801432412,-2511.57498341,0.00010899,2]
[339646036,1727801432422,-2511.57498341,0.00010899,2]
[339646037,1727801432431,-2511.57498341,0.00010899,2]
[339646038,1727801432441,-2122.6584,0.000109,2]
[339646039,1727801432451,-401.94,0.000109,2]
[339646040,1727801432461,-1000.0,0.000109,2]
[339646041,1727801432471,-221137.9738,0.000109,2]
[339646042,1727801432481,-500.0,0.000109,2]
[339646043,1727801432490,-1475.3221,0.000109,2]
[339646044,1727801432500,-5703.669,0.000109,2]
[339646045,1727801432510,-792.9676259,0.000109,2]
[339646046,1727801432519,-178.74207767,0.000109,2]
[339646047,1727801432529,-152.79080492,0.000109,2]
[339646048,1727801432539,-1904.30136887,0.000109,2]
[339646049,1727801432552,-607.27361454,0.000109,2]
[339646050,1727801432562,-50.98638546,0.000109,3]
[339646051,1727801432575,-1649.01361454,0.000109,3]
[339646052,1727801432584,-254.450715,0.000109,2]
[339646053,1727801432595,-695.12,0.00010948,2]
[339646054,1727801432604,-167.46,0.00010959,2]
[339646055,1727801432614,-242.03,0.00010959,2]
[339646056,1727801432624,-1500.0,0.00010959,2]
[339646057,1727801432638,-180.87,0.00010959,2]
[339646058,1727801432648,-166.71,0.00010959,2]
[339646059,1727801432657,-250.0,0.00010959,2]
[339646060,1727801432666,-150.0,0.00010959,2]
[339646061,1727801432676,-500.0,0.00010959,2]
[339646062,1727801432685,-540.45315971,0.00010973,2]
[339646063,1727801432695,-500.0,0.00010973,2]
[339646064,1727801433014,-391.80936884,0.00010973,2]
[339646065,1727801433029,-500.0,0.00010973,2]
[339646066,1727801433040,-500.0,0.00010973,2]
[339646067,1727801433050,-150.0,0.00010986,2]
[339646068,1727801433060,-222.47998378,0.00010986,2]
[339646069,1727801433070,-150.0,0.00010986,2]
[339646070,1727801433080,-150.0,0.00010986,2]
[339646071,1727801433090,-151.82,0.0001099,2]
[339646072,1727801433099,-168.75603806,0.0001099,2]
[339646073,1727801433109,-151.82,0.0001099,2]
[339646074,1727801433119,-151.82,0.0001099,2]
[339646075,1727801433133,-151.82,0.0001099,2]
[339646076,1727801433143,-151.82,0.0001099,2]
[339646077,1727801433153,-2627.32330863,0.00010997,2]
[339646078,1727801433164,-1133.03870407,0.00010999,3]
[339646079,1727801433174,-1133.03870407,0.00010999,3]
[339646080,1727801433185,-1429.30534422,0.00010999,3]
[339646081,1727801433195,-198.04096323,0.00010999,2]
[339646082,1727801433205,-336.30585747,0.00010999,2]
[339646083,1727801433215,-500.0,0.00010999,2]
[339646084,1727801433225,-606.10440668,0.00010999,2]
[339646085,1727801433235,-150.99,0.00010999,2]
[339646086,1727801433246,-142318.23401289,0.00011,2]
[339646087,1727801433259,-67802.10922,0.00011,2]
[339646088,1727801433271,-638.67272336,0.00011,2]
[339646089,1727801433283,-1356.19569135,0.00011,2]
[339646090,1727801433295,-951.22869428,0.00011,2]
[339646091,1727801433307,-984.09450233,0.00011,2]
[339646092,1727801433320,-1182.71091713,0.00011,2]
[339646093,1727801433345,-6289.09813201,0.00011,2]
[339646094,1727801433358,-9058.09230667,0.00011,2]
[339646095,1727801433371,-661.83076547,0.00011,2]
[339646096,1727801433392,-3273.10212446,0.00011,2]
[339646097,1727801433409,-277.61067269,0.00011,2]
[339646098,1727801433423,-1096.73776496,0.00011,2]
[339646099,1727801433435,-1238.04,0.00011,2]
[339646100,1727801433447,-2069.18838291,0.00011,2]
[339646101,1727801433459,-3024.74527894,0.00011,2]
[339646102,1727801433471,-8223.55711527,0.00011,2]
[339646103,1727801433483,-3084.0,0.00011,2]
[339646104,1727801433495,-260.36553153,0.00011,2]
[339646105,1727801433507,-14966.6644788,0.00011,2]
[339646106,1727801433520,-32487.36089944,0.00011,2]
[339646107,1727801433532,-7874.3179034,0.00011,2]
[339646123,1727801437841,-519.07829482,0.00011,2]
[339646124,1727801437853,-17996.72186206,0.00011,2]
[339646125,1727801437864,-843.77773422,0.00011,2]
[339646126,1727801437874,-526.17759152,0.00011,2]
[339646127,1727801437889,-77692.71671266,0.00011,2]
[339646128,1727801437902,-570.23685725,0.00011,2]
[339646129,1727801437914,-23333.39692139,0.00011,2]
[339646130,1727801437925,-930.51620209,0.00011,2]
[339646131,1727801437937,-5808.32989986,0.00011,2]
[339646186,1727801438933,-1387.38638775,0.00011,2]
[339646189,1727801438946,-746.48651101,0.00011,2]
[339646191,1727801438957,-1553.4252,0.00011,2]
[339646193,1727801438968,-669.980028,0.00011,2]
[339646195,1727801438980,-440.1604635,0.00011,2]
[339646197,1727801438992,-858.216,0.00011,2]
[339646199,1727801439003,-757.25070126,0.00011,2]
[339646204,1727801439041,-150758.09809835,0.00011,2]
[339646206,1727801439050,-320.10035734,0.00011,2]
[339646208,1727801439060,-449062.04545094,0.00011,2]
[339646210,1727801439071,-22921.64544318,0.00011,2]
[339646212,1727801439084,-231259.59101668,0.00011,2]
[339646215,1727801439095,-425.26699569,0.00011,2]
[339646220,1727801439139,-462.13353257,0.00011,2]
[339646222,1727801439151,-24059.66385186,0.00011,2]
[339646224,1727801439162,-381.55930584,0.00011,2]
[339646226,1727801439174,-13157.2710806,0.00011,2]
[339646229,1727801439186,-1355.02815999,0.00011,2]
[339646231,1727801439197,-7238.08717098,0.00011,2]
[339646233,1727801439209,-534.22071607,0.00011,2]
[339646235,1727801439220,-8479.81155884,0.00011,2]
[339646237,1727801439231,-521.17192969,0.00011,2]
[339646239,1727801439243,-350.96115512,0.00011,2]
[339646242,1727801439261,-408.0085986,0.00011,2]
[339646244,1727801439273,-1076.7,0.00011,2]
[339646246,1727801439284,-2022.54094756,0.00011,2]
[339646249,1727801439299,-5314.22404625,0.00011,2]
[339646251,1727801439311,-323.21017155,0.00011,2]
[339646253,1727801439323,-290.08119832,0.00011,2]
[339646255,1727801439336,-473.3383626,0.00011,2]
[339646258,1727801439355,-194790.90187715,0.00011,2]
[339646261,1727801439367,-516.99421439,0.00011,2]
[339646263,1727801439378,-5811.84764848,0.00011,2]
[339646265,1727801439392,-353.01173433,0.00011,2]
[339646267,1727801439403,-995.36520928,0.00011,2]
[339646270,1727801439418,-441.66001173,0.00011,2]
[339646272,1727801439429,-13346.76716289,0.00011,2]
[339646274,1727801439440,-467.14661128,0.00011,2]
[339646276,1727801439452,-14806.59407455,0.00011,2]
[339646279,1727801439463,-1291.53932563,0.00011,2]
[339646281,1727801439474,-1169.55400002,0.00011,2]
[339646283,1727801439484,-2704.63123454,0.00011,2]
[339646285,1727801439495,-9996.61745828,0.00011,2]
[339646287,1727801439506,-1839.93992941,0.00011,2]
[339646289,1727801439517,-775.44461026,0.00011,2]
[339646291,1727801439529,-1362.14790047,0.00011,2]
[339646293,1727801439540,-932.219486,0.00011,2]
[339646313,1727801440122,-3593.47834983,0.00011,2]
[339646314,1727801440139,-1746.3324078,0.00011,2]
[339646315,1727801440153,-4170.03465609,0.00011,2]
[339646316,1727801440165,-10400.0,0.00011,2]
[339646319,1727801440187,-2946.68335152,0.00011,2]
[339646320,1727801440198,-3755.24999999,0.00011,2]
[339646321,1727801440306,-203313.34793062,0.00011,2]
[339646322,1727801440318,-40548.52504663,0.00011,2]
[339646323,1727801440330,-426309.37608784,0.00011,2]
[339646324,1727801440342,-330.75749434,0.00011,2]
[339646325,1727801440354,-300.060222,0.00011,2]
[339646326,1727801440374,-1352.59422969,0.00011,2]
[339646327,1727801440405,-10519.89863281,0.00011,2]
[339646328,1727801440417,-2711.97023703,0.00011,2]
[339646329,1727801440428,-20410.21731038,0.00011,2]
[339646331,1727801440439,-1406.98951982,0.00011,2]
[339646334,1727801440451,-293536.50199516,0.00011,2]
[339646336,1727801440462,-975.92965206,0.00011,2]
[339646338,1727801440474,-1309.97,0.00011,2]
[339646340,1727801440489,-8342.69800403,0.00011,2]
[339646342,1727801440501,-901.97564511,0.00011,2]
[339646345,1727801440512,-1399.79399091,0.00011,2]
[339646347,1727801440523,-1301.90749695,0.00011,2]
[339646349,1727801440534,-3784.86407962,0.00011,2]
[339646351,1727801440545,-6409.69574016,0.00011,2]
[339646353,1727801440560,-561.97850452,0.00011,2]
[339646354,1727801440579,-922.18920229,0.00011,2]
[339646355,1727801440591,-566.84138598,0.00011,2]
[339646356,1727801440602,-1009.71667059,0.00011,2]
[339646357,1727801440711,-398.62975953,0.00011,2]
[339646397,1727801442978,-2734.9,0.00011,2]
[339646400,1727801442989,-744.5,0.00011,2]
[339646404,1727801443040,-25221.30029295,0.00011,2]
[339646405,1727801443051,-19282.30996736,0.00011,2]
[339646406,1727801443062,-3898.14041674,0.00011,2]
[339646407,1727801443073,-23018.06022655,0.00011,2]
[339646408,1727801443084,-29699.10982321,0.00011,2]
[339646409,1727801443095,-9414.28831025,0.00011,2]
[339646410,1727801443113,-9521.52102756,0.00011,2]
[339646411,1727801443124,-525.9100055,0.00011,2]
[339646412,1727801443141,-302.0,0.00011,2]
[339646413,1727801443166,-415.19891996,0.00011,2]
[339646414,1727801443177,-310.625,0.00011,2]
[339646415,1727801443189,-1589.0206032,0.00011,2]
[339646416,1727801443201,-900.0,0.00011,2]
[339646418,1727801443224,-5228.00365963,0.00011,2]
[339646419,1727801443235,-524.78333083,0.00011,2]
[339646420,1727801443246,-1111.77976804,0.00011,2]
[339646421,1727801443258,-11876.33293888,0.00011,2]
[339646440,1727801445860,-277.35806127,0.00010973,2]
[339646443,1727801445871,-222.64193873,0.00010973,2]
[339646445,1727801445879,-5911.80806128,0.00011,2]
[339646447,1727801445895,-13244.8381,0.00011,2]
[339646449,1727801445907,-6138.4358,0.00011,2]
[339646451,1727801445918,-949.65,0.00011,2]
[339646453,1727801445929,-565.134902,0.00011,2]
[339646455,1727801445940,-662.27,0.00011,2]
[339646458,1727801445951,-3996.5,0.00011,2]
[339646460,1727801445961,-3807.00947184,0.00011,2]
[339646462,1727801445971,-263.86078829,0.00011,2]
[339646464,1727801445986,-18900.03442524,0.00011,2]
[339646468,1727801446015,-743295.3396299,0.00011,2]
[339646472,1727801446048,-989.56833237,0.00011,2]
[339646475,1727801446071,-10030.90717097,0.00011,2]
[339646477,1727801446082,-626.0103,0.00011,2]
[339646479,1727801446094,-28029.16545586,0.00011,2]
[339646480,1727801446130,-25737.44409623,0.00011,2]
[339646482,1727801446152,-5948.71108862,0.00011,2]
[339646492,1727801446193,-1261.2994503,0.00011,2]
[339646501,1727801592794,747.43,9.25e-05,2]
[339646502,1727801624555,510.01,0.00022,120]
[339646503,1727801672596,300.0,0.00022,120]
[339646504,1727801672807,300.0,0.00022,120]
[339646505,1727801673010,399.99,0.00022,120]
[339646506,1727801675416,499.99,0.00022,120]
[339646507,1727801708002,415.0,0.0001002,2]
[339646508,1727801712695,-475.54732202,0.0002,30]
[339646509,1727801712721,-1527.09065852,0.0002,30]
[339646510,1727801712746,-20843.78658348,0.0002,30]
[339646511,1727801712770,-4188.19594566,0.0002,30]
[339646512,1727801712794,-154.867952,0.0002,30]
[339646513,1727801712818,-158.846699,0.0002,30]
[339646514,1727801712844,-2890.17197937,0.00020919,40]
[339646515,1727801712868,-154.867952,0.00021,40]
[339646516,1727801712903,-2102.5940491,0.00023,120]
[339646517,1727801712928,-1067.44792415,0.00023233,120]
[339646518,1727801712953,-1704.82632816,0.000239,120]
[339646519,1727801712978,-900.0,0.00024,40]
[339646520,1727801713002,-2417.27669889,0.00024,30]
[339646521,1727801713025,-2000.0,0.00024,120]
[339646522,1727801713050,-1000.0,0.00024,120]
[339646523,1727801713076,-1010.12377695,0.00025,60]
[339646524,1727801713101,-2340.01527693,0.00025,30]
[339646525,1727801713124,-1000.0,0.00025,60]
[339646526,1727801713160,-1500.0,0.00025,120]
[339646527,1727801713185,-302.61043547,0.00025,30]
[339646528,1727801713211,-2100.0,0.00025,30]
[339646529,1727801713238,-188.19851534,0.00025,120]
[339646530,1727801713265,-633.28428154,0.00025,120]
[339646531,1727801713293,-3141.59728909,0.00025,60]
[339646532,1727801713321,-500.0,0.00025,120]
[339646533,1727801713350,-2968.32703551,0.0002509,120]
[339646534,1727801713387,-500.0,0.00025827,120]
[339646535,1727801713416,-718.99487098,0.00026,30]
[339646536,1727801713445,-1000.0,0.00026,120]
[339646537,1727801713472,-500.0,0.00026,30]
[339646538,1727801713500,-500.0,0.00026,30]
[339646539,1727801713529,-500.0,0.00026,30]
[339646540,1727801713554,-500.0,0.00026,30]
[339646541,1727801713579,-500.0,0.00026,30]
[339646542,1727801713605,-500.0,0.00026,30]
[339646543,1727801713636,-500.0,0.00026,30]
[339646544,1727801713663,-500.0,0.00026,30]
[339646545,1727801713688,-500.0,0.00026,30]
[339646546,1727801713714,-500.0,0.00026,30]
[339646547,1727801713953,-533.11489621,0.00027,30]
[339646548,1727801713979,-579.37950042,0.00027,30]
[339646549,1727801714010,-500.0,0.00027,30]
[339646550,1727801714047,-500.0,0.00027,30]
[339646551,1727801714085,-500.0,0.00027,30]
[339646552,1727801714133,-203.04727415,0.00027,30]
[339646553,1727801714161,-500.0,0.00027,30]
[339646554,1727801714211,-500.0,0.00027,30]
[339646555,1727801714248,-500.0,0.00027,30]
[339646556,1727801714284,-504.92538752,0.00027,30]
[339646557,1727801714338,-500.0,0.00027,30]
[339646558,1727801714387,-765.6648006,0.00027,30]
[339646559,1727801714415,-500.0,0.00027,30]
[339646560,1727801714442,-500.0,0.00027,30]
[339646561,1727801714468,-500.0,0.00027,30]
[339646562,1727801714492,-500.0,0.00027,30]
[339646563,1727801714516,-500.0,0.00027,30]
[339646564,1727801714540,-500.0,0.00027,30]
[339646565,1727801714564,-530.51383539,0.00027,30]
[339646566,1727801714587,-645.86,0.00027,120]
[339646567,1727801714610,-1008.00695299,0.00027,120]
[339646568,1727801714637,-668.85012384,0.00027,120]
[339646569,1727801714659,-504.13488748,0.00027,120]
[339646570,1727801714684,-2000.0,0.00027,120]
[339646571,1727801714706,-236.44348906,0.00027,120]
[339646572,1727801714730,-1000.0,0.00027,120]
[339646573,1727801714753,-152.0,0.00027014,30]
[339646574,1727801714777,-500.0,0.00027261,120]
[339646575,1727801714800,-152.0,0.00027273,31]
[339646576,1727801714823,-2245.7198364,0.0002736,120]
[339646577,1727801714846,-200.0,0.00027397,60]
[339646578,1727801714870,-152.0,0.00027533,32]
[339646579,1727801714897,-152.0,0.00027792,33]
[339646580,1727801714921,-150.0,0.00027836,120]
[339646581,1727801714945,-825.14369598,0.00028,80]
[339646582,1727801714968,-838.578,0.00028,120]
[339646583,1727801714992,-1000.0,0.00028,120]
[339646584,1727801715016,-152.0,0.00028052,34]
[339646585,1727801715039,-1422.15528229,0.00028297,120]
[339646586,1727801715062,-152.0,0.00028311,35]
[339646587,1727801715085,-200.0,0.00028394,120]
[339646588,1727801715108,-500.0,0.00028527,120]
[339646589,1727801715134,-152.0,0.00028571,36]
[339646590,1727801715157,-500.0,0.00028694,120]
[339646591,1727801715182,-318.01279161,0.00028767,30]
[339646592,1727801715206,-200.0,0.00028827,120]
[339646593,1727801715230,-152.0,0.0002883,37]
[339646594,1727801715253,-318.01279161,0.00028904,30]
[339646595,1727801715304,-1526.76084194,0.00029,30]
[339646596,1727801715329,-1000.0,0.00029,120]
[339646597,1727801715352,-1800.0,0.00029,30]
[339646598,1727801715375,-648.924906,0.00029027,120]
[339646599,1727801715401,-318.01279161,0.00029041,30]
[339646600,1727801715424,-152.0,0.0002909,38]
[339646601,1727801715447,-318.01279161,0.00029178,30]
[339646602,1727801715471,-150.0,0.00029192,120]
[339646603,1727801715494,-200.0,0.00029261,120]
[339646604,1727801715516,-318.01279161,0.00029315,30]
[339646605,1727801715538,-152.0,0.00029349,39]
[339646606,1727801715562,-318.01279161,0.00029452,30]
[339646607,1727801715584,-318.01279161,0.00029589,30]
[339646608,1727801715606,-152.0,0.00029609,40]
[339646609,1727801715834,-150.0,0.00029616,120]
[339646610,1727801715858,-200.0,0.00029694,120]
[339646611,1727801715885,-318.01279161,0.00029753,30]
[339646612,1727801715908,-150.0,0.00029773,120]
[339646613,1727801715932,-150.0,0.00029777,120]
[339646614,1727801715955,-152.0,0.00029868,41]
[339646615,1727801715978,-318.01279161,0.0002989,30]
[339646616,1727801716001,-1162.24540395,0.00029999,30]
[339646617,1727801716026,-178.96510162,0.0003,120]
[339646618,1727801716049,-1960.03182097,0.0003,120]
[339646619,1727801716200,-529.61112639,0.0003,120]
[339646620,1727801716224,-1957.49382934,0.0003,120]
[339646621,1727801716248,-154.35635501,0.0003,120]
[339646622,1727801716272,-2016.69565444,0.0003,120]
[339646623,1727801716295,-3595.0,0.0003,60]
[339646624,1727801716319,-1000.0,0.0003,120]
[339646625,1727801716342,-1800.0,0.0003,31]
[339646626,1727801716365,-967.29095998,0.0003,120]
[339646627,1727801716392,-318.01279161,0.00030027,30]
[339646628,1727801716416,-2000.0,0.00030127,120]
[339646629,1727801716439,-500.0,0.00030127,120]
[339646630,1727801716462,-500.0,0.00030127,120]
[339646631,1727801716484,-200.0,0.00030127,120]
[339646632,1727801716508,-152.0,0.00030128,42]
[339646633,1727801716532,-1317.37686055,0.00030136,30]
[339646634,1727801716555,-200.0,0.00030137,60]
[339646635,1727801716578,-318.01279161,0.00030164,30]
[339646636,1727801716601,-318.01279161,0.00030301,30]
[339646637,1727801716624,-150.0,0.00030328,120]
[339646638,1727801716650,-152.0,0.00030387,43]
[339646639,1727801716677,-150.0,0.00030548,120]
[339646640,1727801716700,-548.0,0.00030613,30]
[339646641,1727801716724,-152.0,0.00030647,44]
[339646642,1727801716747,-250.0,0.000308,30]
[339646643,1727801716770,-200.0,0.00030858,120]
[339646644,1727801716793,-2270.30206824,0.000309,90]
[339646645,1727801716816,-152.0,0.00030906,45]
[339646646,1727801716841,-1000.0,0.00031,120]
[339646647,1727801716865,-1800.0,0.00031,32]
[339646648,1727801716892,-4686.0,0.00031,48]
[339646649,1727801716916,-152.0,0.00031166,46]
[339646650,1727801716944,-152.0,0.00031425,47]
[339646651,1727801716969,-150.0,0.00031446,120]
[339646652,1727801716995,-3449.74951215,0.000315,30]
[339646653,1727801717020,-150.0,0.00031541,120]
[339646654,1727801717044,-200.0,0.00031589,120]
[339646655,1727801717069,-174.12,0.00031644,91]
[339646656,1727801717093,-152.0,0.00031685,48]
[339646657,1727801717118,-152.0,0.00031944,49]
[339646658,1727801717146,-825.14369598,0.00032,120]
[339646659,1727801717177,-150.0,0.00032,120]
[339646660,1727801717200,-1851.04768835,0.00032,30]
[339646661,1727801717224,-1000.0,0.00032,120]
[339646662,1727801717247,-1800.0,0.00032,33]
[339646663,1727801717271,-150.0,0.00032014,120]
[339646664,1727801717295,-150.0,0.00032097,120]
[339646665,1727801717318,-152.0,0.00032204,50]
[339646666,1727801717342,-200.0,0.0003232,120]
[339646667,1727801717366,-152.0,0.00032463,51]
[339646668,1727801717390,-500.0,0.00032545,120]
[339646669,1727801717414,-152.0,0.00032723,52]
[339646670,1727801717438,-337.712376,0.00032826,120]
[339646671,1727801717462,-2649.38,0.00032876,120]
[339646672,1727801717484,-2649.38,0.00032876,120]
[339646673,1727801717507,-2649.38,0.00032876,120]
[339646674,1727801717533,-2649.38,0.00032876,120]
[339646675,1727801717557,-2649.38,0.00032876,120]
[339646676,1727801717579,-2649.38,0.00032876,120]
[339646677,1727801717602,-2649.38,0.00032876,120]
[339646678,1727801717626,-2649.38,0.00032876,120]
[339646679,1727801717661,-2649.38,0.00032876,120]
[339646680,1727801717684,-2649.38,0.00032876,120]
[339646681,1727801717707,-2649.38,0.00032876,120]
[339646682,1727801717728,-2649.38,0.00032876,120]
[339646683,1727801717751,-2649.38,0.00032876,120]
[339646684,1727801717774,-2649.38,0.00032876,120]
[339646685,1727801717796,-2649.38,0.00032876,120]
[339646686,1727801717820,-2649.38,0.00032876,120]
[339646687,1727801717844,-2649.38,0.00032876,120]
[339646688,1727801717866,-2649.38,0.00032876,120]
[339646689,1727801717893,-2649.38,0.00032876,120]
[339646690,1727801717917,-2649.38,0.00032876,120]
[339646691,1727801717940,-2649.38,0.00032876,120]
[339646692,1727801717962,-2649.38,0.00032876,120]
[339646693,1727801717985,-2649.38,0.00032876,120]
[339646694,1727801718010,-2649.42353568,0.00032876,120]
[339646695,1727801718034,-999.0,0.00032876,120]
[339646696,1727801718057,-200.0,0.00032877,60]
[339646697,1727801718080,-457.63,0.00032877,120]
[339646698,1727801718104,-1400.0,0.000329,30]
[339646699,1727801718127,-152.0,0.00032982,53]
[339646700,1727801718152,-577.73968847,0.00033,60]
[339646701,1727801718175,-210.27609829,0.00033,120]
[339646702,1727801718198,-161.10735682,0.00033,120]
[339646703,1727801718222,-1000.0,0.00033,120]
[339646704,1727801718245,-1800.0,0.00033,34]
[339646705,1727801718270,-201.132093,0.00033051,120]
[339646706,1727801718295,-5802.73,0.00033151,120]
[339646707,1727801718320,-150.0,0.00033241,120]
[339646708,1727801718344,-152.0,0.00033242,54]
[339646709,1727801718369,-150.0,0.000333,120]
[339646710,1727801718395,-152.0,0.00033501,55]
[339646711,1727801718419,-768.0,0.00033674,30]
[339646712,1727801718444,-152.0,0.00033761,56]
[339646713,1727801718669,-150.0,0.00033779,120]
[339646714,1727801718697,-999.0,0.00033972,120]
[339646715,1727801718722,-150.0,0.00033977,120]
[339646716,1727801718746,-1811.9720786,0.00034,120]
[339646717,1727801718769,-2615.87423845,0.00034,120]
[339646718,1727801718792,-3000.0,0.00034,120]
[339646719,1727801718817,-1000.0,0.00034,120]
[339646720,1727801718841,-1800.0,0.00034,35]
[339646721,1727801718864,-3961.69003951,0.00034,120]
[339646722,1727801718889,-358.424808,0.00034,30]
[339646723,1727801718914,-152.0,0.0003402,57]
[339646724,1727801718938,-150.0,0.00034368,120]